fUST/lending_fUST_20250912
["ID","MTS","AMOUNT","RATE_DAILY","PERIOD"]
[384946822,1757631058991,-1680.0,0.00015095,2]
[384946823,1757631059001,-480.0,0.00015145,2]
[384946824,1757631059011,-480.0,0.00015145,2]
[384946825,1757631059021,-480.0,0.00015146,2]
[384946826,1757631059031,-1215.87,0.00015146,2]
[384946827,1757631059041,-480.0,0.00015146,2]
[384946828,1757631059051,-538.35,0.00015146,2]
[384946829,1757631059060,-480.0,0.00015146,2]
[384946830,1757631059070,-569.96,0.00015147,2]
[384946831,1757631059079,-480.0,0.00015147,2]
[384946832,1757631059088,-971.19,0.00015147,2]
[384946833,1757631059098,-579.85,0.00015147,2]
[384946834,1757631059107,-480.0,0.00015147,2]
[384946835,1757631059117,-480.0,0.00015148,2]
[384946836,1757631059127,-480.0,0.00015148,2]
[384946837,1757631059137,-465.87260372,0.00015148,2]
[384946838,1757631059147,-480.0,0.00015148,2]
[384946839,1757631059158,-480.0,0.00015148,2]
[384946840,1757631059167,-480.0,0.00015148,2]
[384946841,1757631059177,-480.0,0.00015148,2]
[384946842,1757631059186,-579.05993308,0.00015148,2]
[384946843,1757631059196,-480.0,0.00015148,2]
[384946844,1757631059206,-558.88,0.00015148,2]
[384946845,1757631059217,-480.0,0.00015148,2]
[384946846,1757631059227,-3392.15,0.00015148,2]
[384946847,1757631059236,-480.0,0.00015148,2]
[384946848,1757631059246,-675.03,0.0001515,2]
[384946849,1757631059256,-561.76,0.0001515,2]
[384946850,1757631059265,-2236.5,0.0001515,2]
[384946851,1757631059274,-480.0,0.0001515,2]
[384946852,1757631059284,-702.15,0.0001515,2]
[384946853,1757631059294,-892.36,0.0001515,2]
[384946854,1757631059303,-480.0,0.0001515,2]
[384946855,1757631059312,-4268.39,0.0001515,2]
[384946856,1757631059322,-480.0,0.0001515,2]
[384946857,1757631059331,-1680.0,0.00015151,2]
[384946858,1757631059340,-480.0,0.00015152,2]
[384946859,1757631059350,-480.0,0.00015152,2]
[384946860,1757631059360,-480.0,0.00015152,2]
[384946861,1757631059370,-480.0,0.00015152,2]
[384946862,1757631059380,-480.0,0.00015152,2]
[384946863,1757631059389,-480.0,0.00015152,2]
[384946864,1757631059399,-480.0,0.00015152,2]
[384946865,1757631059408,-1347.57,0.00015152,2]
[384946866,1757631059417,-480.0,0.00015152,2]
[384946867,1757631059426,-565.21877005,0.00015152,2]
[384946868,1757631059435,-480.0,0.00015152,2]
[384946869,1757631059445,-480.0,0.00015152,2]
[384946870,1757631059454,-480.0,0.00015152,2]
[384946871,1757631059464,-582.84,0.00015152,2]
[384946872,1757631059473,-480.0,0.00015152,2]
[384946873,1757631059482,-503.98,0.00015152,2]
[384946874,1757631059491,-480.0,0.00015152,2]
[384946875,1757631059501,-480.0,0.00015152,2]
[384946876,1757631059511,-204.58,0.00015152,2]
[384946877,1757631059520,-480.0,0.00015152,2]
[384946878,1757631059529,-480.0,0.00015152,2]
[384946879,1757631059538,-480.0,0.00015152,2]
[384946880,1757631059547,-480.0,0.00015152,2]
[384946881,1757631059557,-480.0,0.00015152,2]
[384946882,1757631059566,-191.02938076,0.00015152,2]
[384946883,1757631059577,-480.0,0.00015152,2]
[384946884,1757631059587,-480.0,0.00015152,2]
[384946885,1757631059596,-480.0,0.00015152,2]
[384946886,1757631059606,-480.0,0.00015152,2]
[384946887,1757631059615,-480.0,0.00015152,2]
[384946888,1757631059625,-159.24302595,0.00015156,2]
[384946889,1757631059635,-480.0,0.00015156,2]
[384946890,1757631059644,-480.0,0.00015156,2]
[384946891,1757631059653,-480.0,0.00015159,2]
[384946892,1757631059663,-160.0,0.00015256,2]
[384946893,1757631059673,-846.96613202,0.00015256,2]
[384946894,1757631059682,-217.69300629,0.00015256,2]
[384946895,1757631059691,-233.10680167,0.00015256,2]
[384946896,1757631059702,-153.87,0.00015419,2]
[384946897,1757631059711,-480.0,0.00015419,2]
[384946898,1757631059720,-1215.87,0.0001542,2]
[384946899,1757631059729,-480.0,0.0001542,2]
[384946900,1757631059739,-538.35,0.0001542,2]
[384946901,1757631059748,-480.0,0.0001542,2]
[384946902,1757631059757,-569.96,0.00015421,2]
[384946903,1757631059767,-480.0,0.00015421,2]
[384946904,1757631059776,-971.19,0.00015421,2]
[384946905,1757631059786,-579.85,0.00015421,2]
[384946906,1757631059795,-480.0,0.00015421,2]
[384946907,1757631059804,-480.0,0.00015422,2]
[384946908,1757631059813,-480.0,0.00015422,2]
[384946909,1757631059822,-480.0,0.00015422,2]
[384946910,1757631059833,-480.0,0.00015422,2]
[384946911,1757631059843,-558.88,0.00015422,2]
[384946912,1757631059852,-612.14143188,0.00015422,2]
[384946913,1757631059861,-3392.15,0.00015422,2]
[384946914,1757631059870,-480.0,0.00015422,2]
[384946915,1757631059879,-675.03,0.00015424,2]
[384946916,1757631059889,-2236.5,0.00015424,2]
[384946917,1757631059899,-480.0,0.00015424,2]
[384946918,1757631059908,-702.15,0.00015424,2]
[384946919,1757631059917,-892.36,0.00015424,2]
[384946920,1757631059926,-480.0,0.00015424,2]
[384946921,1757631059935,-4268.39,0.00015424,2]
[384946922,1757631059944,-486.04,0.00015426,2]
[384946923,1757631059954,-480.0,0.00015426,2]
[384946924,1757631059963,-480.0,0.00015426,2]
[384946925,1757631059972,-250.44,0.00015426,2]
[384946926,1757631059981,-480.0,0.00015426,2]
[384946927,1757631059990,-480.0,0.00015426,2]
[384946928,1757631060000,-480.0,0.00015426,2]
[384946929,1757631060009,-1347.57,0.00015426,2]
[384946930,1757631060018,-480.0,0.00015426,2]
[384946931,1757631060028,-480.0,0.00015426,2]
[384946932,1757631060037,-480.0,0.00015426,2]
[384946933,1757631060047,-480.0,0.00015426,2]
[384946934,1757631060056,-503.98,0.00015426,2]
[384946935,1757631060066,-480.0,0.00015426,2]
[384946936,1757631060076,-480.0,0.00015426,2]
[384946937,1757631060086,-480.0,0.00015426,2]
[384946938,1757631060095,-497.2,0.00015426,2]
[384946939,1757631060104,-480.0,0.00015426,2]
[384946940,1757631060114,-480.0,0.00015426,2]
[384946941,1757631060123,-480.0,0.00015426,2]
[384946942,1757631060133,-480.0,0.00015426,2]
[384946943,1757631060142,-480.0,0.00015426,2]
[384946944,1757631060152,-480.0,0.0001543,2]
[384946945,1757631060161,-185.47953218,0.00015433,2]
[384946946,1757631060171,-152.40059948,0.00015437,2]
[384946947,1757631060181,-720.0,0.00015474,2]
[384946948,1757631060191,-260.0,0.0001552,2]
[384946949,1757631060200,-480.0,0.00015693,2]
[384946950,1757631060211,-1215.87,0.00015694,2]
[384946951,1757631060220,-480.0,0.00015694,2]
[384946952,1757631060231,-538.35,0.00015694,2]
[384946953,1757631060240,-480.0,0.00015694,2]
[384946954,1757631060250,-569.96,0.00015695,2]
[384946955,1757631060259,-480.0,0.00015695,2]
[384946956,1757631060268,-971.19,0.00015695,2]
[384946957,1757631060278,-579.85,0.00015695,2]
[384946958,1757631060287,-480.0,0.00015695,2]
[384946959,1757631060296,-480.0,0.00015696,2]
[384946960,1757631060305,-416.76,0.00015696,2]
[384946961,1757631060314,-480.0,0.00015696,2]
[384946962,1757631060324,-480.0,0.00015696,2]
[384946963,1757631060333,-558.88,0.00015696,2]
[384946964,1757631060343,-3392.15,0.00015696,2]
[384946965,1757631060352,-480.0,0.00015696,2]
[384946966,1757631060361,-675.03,0.00015698,2]
[384946967,1757631060370,-2236.5,0.00015698,2]
[384946968,1757631060380,-480.0,0.00015698,2]
[384946969,1757631060390,-702.15,0.00015698,2]
[384946970,1757631060399,-892.36,0.00015698,2]
[384946971,1757631060408,-480.0,0.00015698,2]
[384946972,1757631060418,-4268.39,0.00015698,2]
[384946973,1757631060427,-480.0,0.000157,2]
[384946974,1757631060530,-480.0,0.000157,2]
[384946975,1757631060540,-480.0,0.000157,2]
[384946976,1757631060550,-480.0,0.000157,2]
[384946977,1757631060560,-480.0,0.000157,2]
[384946978,1757631060570,-1347.57,0.000157,2]
[384946979,1757631060579,-404.11343444,0.000157,2]
[384946980,1757631060588,-581.37,0.000157,2]
[384946981,1757631060597,-480.0,0.000157,2]
[384946982,1757631060607,-503.98,0.000157,2]
[384946983,1757631060616,-480.0,0.000157,2]
[384946984,1757631060625,-157.89993872,0.000157,2]
[384946985,1757631060636,-480.0,0.000157,2]
[384946986,1757631060645,-480.0,0.000157,2]
[384946987,1757631060654,-480.0,0.000157,2]
[384946988,1757631060663,-151.0,0.00015704,2]
[384946989,1757631060673,-151.0,0.00015704,2]
[384946990,1757631060682,-480.0,0.00015967,2]
[384946991,1757631060691,-1215.87,0.00015968,2]
[384946992,1757631060700,-538.35,0.00015968,2]
[384946993,1757631060709,-480.0,0.00015968,2]
[384946994,1757631060718,-569.96,0.00015969,2]
[384946995,1757631060727,-480.0,0.00015969,2]
[384946996,1757631060736,-971.19,0.00015969,2]
[384946997,1757631060745,-579.85,0.00015969,2]
[384946998,1757631060754,-480.0,0.00015969,2]
[384946999,1757631060763,-578.26,0.0001597,2]
[384947000,1757631060773,-480.0,0.0001597,2]
[384947001,1757631060783,-480.0,0.0001597,2]
[384947002,1757631060792,-558.88,0.0001597,2]
[384947003,1757631060801,-3392.15,0.0001597,2]
[384947004,1757631060810,-480.0,0.0001597,2]
[384947005,1757631060819,-675.03,0.00015972,2]
[384947006,1757631060828,-2236.5,0.00015972,2]
[384947007,1757631060841,-480.0,0.00015972,2]
[384947008,1757631060850,-702.15,0.00015972,2]
[384947009,1757631060859,-892.36,0.00015972,2]
[384947010,1757631060868,-480.0,0.00015972,2]
[384947011,1757631060879,-4268.39,0.00015972,2]
[384947012,1757631060888,-476.85,0.00015974,2]
[384947013,1757631060898,-480.0,0.00015974,2]
[384947014,1757631060908,-480.0,0.00015974,2]
[384947015,1757631060916,-480.0,0.00015974,2]
[384947016,1757631060924,-1347.57,0.00015974,2]
[384947017,1757631060933,-480.0,0.00015974,2]
[384947018,1757631060943,-503.98,0.00015974,2]
[384947019,1757631060952,-480.0,0.00015974,2]
[384947020,1757631060960,-480.0,0.00015974,2]
[384947021,1757631060969,-480.0,0.00015974,2]
[384947022,1757631060979,-555.57,0.00015974,2]
[384947023,1757631060988,-166.225936,0.00015975,2]
[384947024,1757631060997,-151.0,0.00015975,2]
[384947025,1757631061007,-10583.28703691,0.00016,3]
[384947026,1757631061016,-360.0,0.00016068,2]
[384947027,1757631061026,-480.0,0.00016241,2]
[384947028,1757631061035,-1215.87,0.00016242,2]
[384947029,1757631061044,-538.35,0.00016242,2]
[384947030,1757631061053,-480.0,0.00016242,2]
[384947031,1757631061063,-569.96,0.00016243,2]
[384947032,1757631061073,-423.88,0.00016243,2]
[384947033,1757631061083,-971.19,0.00016243,2]
[384947034,1757631061092,-579.85,0.00016243,2]
[384947035,1757631061101,-480.0,0.00016243,2]
[384947036,1757631061111,-480.0,0.00016244,2]
[384947037,1757631061120,-480.0,0.00016244,2]
[384947038,1757631061129,-558.88,0.00016244,2]
[384947039,1757631061139,-3392.15,0.00016244,2]
[384947040,1757631061148,-675.03,0.00016246,2]
[384947041,1757631061157,-2236.5,0.00016246,2]
[384947042,1757631061167,-480.0,0.00016246,2]
[384947043,1757631061176,-702.15,0.00016246,2]
[384947044,1757631061186,-892.36,0.00016246,2]
[384947045,1757631061195,-480.0,0.00016246,2]
[384947046,1757631061204,-4268.39,0.00016246,2]
[384947047,1757631061213,-480.0,0.00016248,2]
[384947048,1757631061223,-480.0,0.00016248,2]
[384947049,1757631061232,-480.0,0.00016248,2]
[384947050,1757631061241,-1347.57,0.00016248,2]
[384947051,1757631061251,-480.0,0.00016248,2]
[384947052,1757631061260,-503.98,0.00016248,2]
[384947053,1757631061269,-480.0,0.00016248,2]
[384947054,1757631061279,-480.0,0.00016248,2]
[384947055,1757631061288,-480.0,0.00016248,2]
[384947056,1757631061297,-500.0,0.00016438,2]
[384947057,1757631061306,-500.0,0.00016438,2]
[384947058,1757631061315,-500.0,0.00016438,2]
[384947059,1757631061324,-500.0,0.00016438,2]
[384947060,1757631061333,-500.0,0.00016438,2]
[384947061,1757631061342,-500.0,0.00016438,2]
[384947062,1757631061351,-500.0,0.00016438,2]
[384947063,1757631061360,-500.0,0.00016438,2]
[384947064,1757631061369,-500.0,0.00016438,2]
[384947065,1757631061379,-500.0,0.00016438,2]
[384947066,1757631061388,-1000.0,0.00016438,2]
[384947067,1757631061398,-1000.0,0.00016438,2]
[384947068,1757631061407,-1000.0,0.00016438,2]
[384947069,1757631061416,-1000.0,0.00016438,2]
[384947070,1757631061425,-1000.0,0.00016438,2]
[384947071,1757631061434,-1000.0,0.00016438,2]
[384947072,1757631061443,-1000.0,0.00016438,2]
[384947073,1757631061452,-1000.0,0.00016438,2]
[384947074,1757631061461,-1000.0,0.00016438,2]
[384947075,1757631061470,-1000.0,0.00016438,2]
[384947076,1757631061479,-1000.0,0.00016438,2]
[384947077,1757631061488,-1000.0,0.00016438,2]
[384947078,1757631061497,-1000.0,0.00016438,2]
[384947079,1757631061506,-1000.0,0.00016438,2]
[384947080,1757631061515,-1000.0,0.00016438,2]
[384947081,1757631061524,-1000.0,0.00016438,2]
[384947082,1757631061533,-1000.0,0.00016438,2]
[384947083,1757631061542,-1000.0,0.00016438,2]
[384947084,1757631061551,-1000.0,0.00016438,2]
[384947085,1757631061560,-1000.0,0.00016438,2]
[384947086,1757631061570,-1000.0,0.00016438,2]
[384947087,1757631061579,-1000.0,0.00016438,2]
[384947088,1757631061588,-1000.0,0.00016438,2]
[384947089,1757631061597,-1000.0,0.00016438,2]
[384947090,1757631061606,-1000.0,0.00016438,2]
[384947091,1757631061616,-1000.0,0.00016438,2]
[384947092,1757631061625,-1000.0,0.00016438,2]
[384947093,1757631061634,-1000.0,0.00016438,2]
[384947094,1757631061643,-262.09264,0.00016438,2]
[384947095,1757631061653,-3246.06717013,0.000165,2]
[384947096,1757631061662,-480.0,0.00016515,2]
[384947097,1757631061672,-1215.87,0.00016516,2]
[384947098,1757631061681,-538.35,0.00016516,2]
[384947099,1757631061690,-480.0,0.00016516,2]
[384947100,1757631061700,-569.96,0.00016517,2]
[384947101,1757631061709,-971.19,0.00016517,2]
[384947102,1757631061719,-579.85,0.00016517,2]
[384947103,1757631061728,-480.0,0.00016517,2]
[384947104,1757631061737,-480.0,0.00016518,2]
[384947105,1757631061746,-180.72,0.00016518,2]
[384947106,1757631061755,-558.88,0.00016518,2]
[384947107,1757631061764,-3392.15,0.00016518,2]
[384947108,1757631061774,-675.03,0.0001652,2]
[384947109,1757631061783,-2236.5,0.0001652,2]
[384947110,1757631061792,-480.0,0.0001652,2]
[384947111,1757631061802,-702.15,0.0001652,2]
[384947112,1757631061810,-892.36,0.0001652,2]
[384947113,1757631061820,-480.0,0.0001652,2]
[384947114,1757631061829,-1779.7103681,0.0001652,2]
[384947115,1757631061990,-2488.6796319,0.0001652,2]
[384947116,1757631061999,-480.0,0.00016522,2]
[384947117,1757631062008,-480.0,0.00016522,2]
[384947118,1757631062018,-480.0,0.00016522,2]
[384947119,1757631062027,-1347.57,0.00016522,2]
[384947120,1757631062036,-503.98,0.00016522,2]
[384947121,1757631062045,-480.0,0.00016522,2]
[384947122,1757631062054,-500.0,0.00016522,2]
[384947123,1757631062064,-480.0,0.00016522,2]
[384947124,1757631062072,-480.0,0.00016522,2]
[384947125,1757631062082,-13338.4963255,0.00016536,2]
[384947126,1757631062091,-587.0,0.0001654,2]
[384947127,1757631062100,-720.0,0.00016541,2]
[384947128,1757631062109,-460.0,0.00016616,2]
[384947129,1757631062119,-500.0,0.0001664,2]
[384947130,1757631062128,-500.0,0.0001664,2]
[384947131,1757631062137,-500.0,0.0001664,2]
[384947132,1757631062147,-500.0,0.0001664,2]
[384947133,1757631062156,-500.0,0.0001664,2]
[384947134,1757631062165,-500.0,0.0001664,2]
[384947135,1757631062174,-1225.0,0.00016667,2]
[384947136,1757631062184,-480.0,0.00016789,2]
[384947137,1757631062193,-1215.87,0.0001679,2]
[384947138,1757631062202,-538.35,0.0001679,2]
[384947139,1757631062211,-557.48985289,0.0001679,2]
[384947140,1757631062220,-569.96,0.00016791,2]
[384947141,1757631062230,-971.19,0.00016791,2]
[384947142,1757631062239,-579.85,0.00016791,2]
[384947143,1757631062248,-480.0,0.00016791,2]
[384947144,1757631062257,-480.0,0.00016792,2]
[384947145,1757631062267,-558.88,0.00016792,2]
[384947146,1757631062277,-3392.15,0.00016792,2]
[384947147,1757631062286,-675.03,0.00016794,2]
[384947148,1757631062295,-2236.5,0.00016794,2]
[384947149,1757631062305,-480.0,0.00016794,2]
[384947150,1757631062314,-702.15,0.00016794,2]
[384947151,1757631062323,-892.36,0.00016794,2]
[384947152,1757631062332,-196.06,0.00016794,2]
[384947153,1757631062342,-4268.39,0.00016794,2]
[384947154,1757631062351,-500.0,0.00016795,2]
[384947155,1757631062360,-500.0,0.00016795,2]
[384947156,1757631062369,-480.0,0.00016796,2]
[384947157,1757631062378,-480.0,0.00016796,2]
[384947158,1757631062388,-480.0,0.00016796,2]
[384947159,1757631062397,-1347.57,0.00016796,2]
[384947160,1757631062406,-503.98,0.00016796,2]
[384947161,1757631062416,-480.0,0.00016796,2]
[384947162,1757631062425,-500.0,0.00016796,2]
[384947163,1757631062435,-168.45,0.00016796,2]
[384947164,1757631062444,-480.0,0.00016796,2]
[384947165,1757631062454,-500.0,0.00016814,2]
[384947166,1757631062463,-500.0,0.00016814,2]
[384947167,1757631062472,-1000.0,0.0001696,2]
[384947168,1757631062482,-1000.0,0.0001696,2]
[384947169,1757631062491,-18603.8837,0.0001696,2]
[384947170,1757631062500,-151.0,0.0001696,2]
[384947171,1757631062510,-2030.296672,0.0001696,2]
[384947172,1757631062519,-1000.0,0.0001696,2]
[384947173,1757631062529,-500.0,0.0001696,2]
[384947174,1757631062630,-170.05616253,0.0001696,2]
[384947175,1757631062640,-1000.0,0.0001696,2]
[384947176,1757631062650,-500.0,0.0001696,2]
[384947177,1757631062660,-151.0,0.0001696,2]
[384947178,1757631062669,-500.0,0.0001696,2]
[384947179,1757631062679,-151.0,0.0001696,2]
[384947180,1757631062688,-151.0,0.0001696,2]
[384947181,1757631062697,-1000.0,0.0001696,2]
[384947182,1757631062706,-500.0,0.0001696,2]
[384947183,1757631062715,-151.0,0.0001696,2]
[384947184,1757631062725,-1000.0,0.0001696,2]
[384947185,1757631062734,-151.0,0.0001696,2]
[384947186,1757631062744,-500.0,0.0001696,2]
[384947187,1757631062753,-151.0,0.0001696,2]
[384947188,1757631062762,-151.0,0.0001696,2]
[384947189,1757631062771,-151.0,0.0001696,2]
[384947190,1757631062781,-1000.0,0.0001696,2]
[384947191,1757631062790,-500.0,0.0001696,2]
[384947192,1757631062799,-151.0,0.0001696,2]
[384947193,1757631062808,-1000.0,0.0001696,2]
[384947194,1757631062818,-500.0,0.0001696,2]
[384947195,1757631062827,-151.0,0.0001696,2]
[384947196,1757631062840,-151.0,0.0001696,2]
[384947197,1757631062850,-1000.0,0.0001696,2]
[384947198,1757631062860,-151.0,0.0001696,2]
[384947199,1757631062869,-151.0,0.0001696,2]
[384947200,1757631062880,-1000.0,0.0001696,2]
[384947201,1757631062889,-500.0,0.0001696,2]
[384947202,1757631062899,-151.0,0.0001696,2]
[384947203,1757631062909,-151.0,0.0001696,2]
[384947204,1757631062919,-151.0,0.0001696,2]
[384947205,1757631062928,-1000.0,0.0001696,2]
[384947206,1757631062939,-500.0,0.0001696,2]
[384947207,1757631062948,-151.0,0.0001696,2]
[384947208,1757631062958,-151.0,0.0001696,2]
[384947209,1757631062967,-500.0,0.0001696,2]
[384947210,1757631062977,-151.0,0.0001696,2]
[384947211,1757631062986,-151.0,0.0001696,2]
[384947212,1757631062996,-1000.0,0.0001696,2]
[384947213,1757631063005,-151.0,0.0001696,2]
[384947214,1757631063015,-500.0,0.0001696,2]
[384947215,1757631063024,-151.0,0.0001696,2]
[384947216,1757631063034,-151.0,0.0001696,2]
[384947217,1757631063043,-500.0,0.0001696,2]
[384947218,1757631063053,-1000.0,0.0001696,2]
[384947219,1757631063063,-151.0,0.0001696,2]
[384947220,1757631063072,-500.0,0.0001696,2]
[384947221,1757631063083,-1145.9850186,0.0001696,2]
[384947222,1757631063093,-151.0,0.0001696,2]
[384947223,1757631063103,-500.0,0.0001696,2]
[384947224,1757631063112,-300.11116599,0.0001696,2]
[384947225,1757631063122,-476.42904363,0.0001696,2]
[384947226,1757631063235,-480.0,0.00013776,2]
[384947227,1757631063245,-480.0,0.0001405,2]
[384947228,1757631063254,-575.8,0.00014876,2]
[384947229,1757631063264,-575.8,0.0001515,2]
[384947230,1757631063274,-364.44033273,0.00015424,2]
[384947231,1757631063286,-211.35966727,0.00015424,2]
[384947232,1757631063295,-23.57095637,0.0001696,2]
[384947233,1757631063305,-151.0,0.0001696,2]
[384947234,1757631063315,-83.01137636,0.0001696,2]
[384947235,1757631063464,-575.8,0.00015698,2]
[384947236,1757631063473,-575.8,0.00015972,2]
[384947237,1757631063482,-575.8,0.00016246,2]
[384947238,1757631063491,-575.8,0.0001652,2]
[384947239,1757631063500,-575.8,0.00016794,2]
[384947240,1757631063509,-416.98862364,0.0001696,2]
[384947241,1757631063518,-500.0,0.0001696,2]
[384947242,1757631063527,-151.0,0.0001696,2]
[384947243,1757631063536,-151.0,0.0001696,2]
[384947244,1757631063546,-500.0,0.0001696,2]
[384947245,1757631063555,-500.0,0.0001696,2]
[384947246,1757631063564,-151.19246068,0.0001696,2]
[384947247,1757631063574,-151.0,0.0001696,2]
[384947248,1757631063583,-215.24533376,0.0001696,2]
[384947249,1757631063591,-500.0,0.0001696,2]
[384947250,1757631063601,-500.0,0.0001696,2]
[384947251,1757631063610,-151.0,0.0001696,2]
[384947252,1757631063619,-500.0,0.0001696,2]
[384947253,1757631063628,-500.0,0.0001696,2]
[384947254,1757631063637,-500.0,0.0001696,2]
[384947255,1757631063646,-151.0,0.0001696,2]
[384947256,1757631063656,-500.0,0.0001696,2]
[384947257,1757631063664,-151.0,0.0001696,2]
[384947258,1757631063673,-151.0,0.0001696,2]
[384947259,1757631063682,-23.65843349,0.0001696,2]
[384947260,1757631063694,-127.34156651,0.0001696,2]
[384947261,1757631063703,-151.0,0.0001696,2]
[384947262,1757631063713,-151.0,0.0001696,2]
[384947263,1757631063722,-151.0,0.0001696,2]
[384947264,1757631063731,-151.62745434,0.0001696,2]
[384947265,1757631063740,-500.0,0.00016981,2]
[384947266,1757631063749,-490.11130602,0.00017021,2]
[384947267,1757631064856,-373.88869398,0.00017021,2]
[384947268,1757631064867,-143.68411269,0.00017063,2]
[384947269,1757631064879,-258.67234176,0.00017063,2]
[384947274,1757631189523,4037.57784548,0.00013676,2]
[384947329,1757631760787,555.863487,0.00013699,2]
[384947345,1757631826843,193.74138,0.00013699,2]
[384947379,1757632075736,4358.43459026,0.00012774,2]
[384947380,1757632075808,5641.56540974,0.00012774,2]
[384947384,1757632081496,1126.07677453,0.00013632,2]
[384947386,1757632081900,3232.36781573,0.00012774,2]
[384947387,1757632081991,10000.01,0.00012774,2]
[384947388,1757632082068,10000.01,0.00012774,2]
[384947389,1757632082139,4273.13721547,0.00012774,2]
[384947390,1757632082505,300.0,0.00012773,2]
[384947393,1757632089400,1200.0,0.00013632,2]
[384947395,1757632090669,568.48,0.00012329,2]
[384947399,1757632098062,1200.0,0.00013632,2]
[384947400,1757632099395,259.509112,0.00013359,2]
[384947401,1757632099781,171.46459299,0.0001336,2]
[384947403,1757632101181,473.73,0.00012329,2]
[384947406,1757632107040,1200.0,0.00013632,2]
[384947408,1757632112131,394.78,0.00012329,2]
[384947411,1757632115094,1200.0,0.00013632,2]
[384947414,1757632122740,328.98,0.00012329,2]
[384947415,1757632123134,1200.0,0.00013632,2]
[384947416,1757632127384,666.0,0.00012775,2]
[384947419,1757632131182,1200.0,0.00013632,2]
[384947420,1757632133604,274.15,0.00012329,2]
[384947424,1757632139016,1200.0,0.00013632,2]
[384947427,1757632144060,228.46,0.00012329,2]
[384947430,1757632147030,1500.0,0.00013632,2]
[384947435,1757632151723,8500.01,0.00013677,2]
[384947436,1757632151795,5668.73554629,0.00013677,2]
[384947438,1757632154808,190.38,0.00012329,2]
[384947439,1757632154930,1500.0,0.00013632,2]
[384947456,1757632163475,1500.0,0.00013632,2]
[384947501,1757632165464,158.65,0.00012329,2]
[384947506,1757632172317,1500.0,0.00013632,2]
[384947507,1757632175901,793.29,0.00012329,2]
[384947508,1757632181253,1500.0,0.00013632,2]
[384947509,1757632190646,1500.0,0.00013632,2]
[384947510,1757632199418,1500.0,0.00013632,2]
[384947511,1757632207918,3300.0,0.00013632,2]
[384947512,1757632216172,3600.0,0.00013632,2]
[384947513,1757632224123,100.01,0.00013632,2]
[384947514,1757632224196,3499.99,0.00013632,2]
[384947556,1757632232620,-338.91554705,0.0001377,2]
[384947569,1757632232735,-861.08445295,0.0001377,2]
[384947571,1757632232745,-300.0,0.0001377,2]
[384947573,1757632232755,-236.31238244,0.0001377,2]
[384947575,1757632232766,-63.68761756,0.0001377,2]
[384947577,1757632232775,-300.0,0.0001377,2]
[384947580,1757632232784,-104.93971074,0.0001377,2]
[384947584,1757632232796,-1095.06028926,0.0001377,2]
[384947587,1757632232806,-300.0,0.0001377,2]